fUSD/lending_fUSD_20250714
["ID","MTS","AMOUNT","RATE_DAILY","PERIOD"]
[371860726,1752451849438,-460.0,0.00043835,15]
[371860727,1752451849447,-556.99235648,0.00043835,15]
[371860728,1752451849456,-460.0,0.00043835,15]
[371860729,1752451849466,-460.0,0.00043835,15]
[371860730,1752451849475,-460.0,0.00043835,15]
[371860731,1752451849485,-460.0,0.00043835,15]
[371860732,1752451849495,-460.0,0.00043835,15]
[371860733,1752451849504,-460.0,0.00043835,15]
[371860734,1752451849514,-460.0,0.00043835,15]
[371860735,1752451849523,-460.0,0.00043835,15]
[371860736,1752451849533,-301.2673287,0.00043835,15]
[371860737,1752451849543,-817.01,0.00043835,15]
[371860738,1752451849552,-667.47,0.00043835,15]
[371860739,1752451849562,-460.0,0.00043835,15]
[371860740,1752451849572,-460.0,0.00043835,15]
[371860741,1752451849581,-460.0,0.00043835,15]
[371860742,1752451849591,-851.28,0.00043835,15]
[371860743,1752451849600,-460.0,0.00043835,15]
[371860744,1752451849611,-460.0,0.00043835,15]
[371860745,1752451849620,-270.74130998,0.00043835,15]
[371860746,1752451849629,-1702.65,0.00043835,15]
[371860747,1752451849639,-460.0,0.00043835,15]
[371860748,1752451849648,-460.0,0.00043835,15]
[371860749,1752451849657,-2223.58,0.00043835,15]
[371860750,1752451849667,-460.0,0.00043835,15]
[371860751,1752451849677,-460.0,0.00043835,15]
[371860752,1752451849691,-460.0,0.00043835,15]
[371860753,1752451849701,-1047.75,0.00043835,15]
[371860754,1752451849710,-625.15,0.00043835,15]
[371860755,1752451849719,-957.76,0.00043835,15]
[371860756,1752451849729,-460.0,0.00043835,15]
[371860757,1752451849738,-617.93,0.00043835,15]
[371860758,1752451849747,-460.0,0.00043835,15]
[371860759,1752451849757,-617.93,0.00043835,15]
[371860760,1752451849766,-6107.78,0.00043835,15]
[371860761,1752451849775,-617.93,0.00043835,15]
[371860762,1752451849785,-460.0,0.00043835,15]
[371860763,1752451849794,-617.93,0.00043835,15]
[371860764,1752451849802,-617.93,0.00043835,15]
[371860765,1752451849812,-617.93,0.00043835,15]
[371860766,1752451849821,-617.93,0.00043835,15]
[371860767,1752451849831,-617.93,0.00043835,15]
[371860768,1752451849840,-610.69,0.00043835,15]
[371860769,1752451849849,-460.0,0.00043835,15]
[371860770,1752451849859,-460.0,0.00043835,15]
[371860771,1752451849868,-460.0,0.00043835,15]
[371860772,1752451849878,-460.0,0.00043835,15]
[371860773,1752451849887,-460.0,0.00043835,15]
[371860774,1752451849896,-460.0,0.00043835,15]
[371860775,1752451849905,-1228.65,0.00043835,15]
[371860776,1752451849915,-460.0,0.00043835,15]
[371860777,1752451849924,-1228.65,0.00043835,15]
[371860778,1752451849934,-618.15,0.00043835,15]
[371860779,1752451849943,-460.0,0.00043835,15]
[371860780,1752451849953,-1228.65,0.00043835,15]
[371860781,1752451849962,-2464.86,0.00043835,15]
[371860782,1752451849972,-460.0,0.00043835,15]
[371860783,1752451849981,-1228.65,0.00043835,15]
[371860784,1752451849990,-460.0,0.00043835,15]
[371860785,1752451849999,-1228.65,0.00043835,15]
[371860786,1752451850009,-676.74,0.00043835,15]
[371860787,1752451850018,-1228.65,0.00043835,15]
[371860788,1752451850027,-460.0,0.00043835,15]
[371860789,1752451850037,-1228.65,0.00043835,15]
[371860790,1752451850046,-460.0,0.00043835,15]
[371860791,1752451850055,-1228.65,0.00043835,15]
[371860792,1752451850065,-1228.65,0.00043835,15]
[371860793,1752451850074,-1680.64,0.00043835,15]
[371860794,1752451850083,-1228.65,0.00043835,15]
[371860795,1752451850092,-1228.65,0.00043835,15]
[371860796,1752451850102,-1228.65,0.00043835,15]
[371860797,1752451850111,-1228.65,0.00043835,15]
[371860798,1752451850121,-1330.57,0.00043835,15]
[371860799,1752451850130,-1028.58,0.00043835,15]
[371860800,1752451850140,-460.0,0.00043835,15]
[371860801,1752451850149,-460.0,0.00043835,15]
[371860802,1752451850161,-460.0,0.00043835,15]
[371860803,1752451850181,-460.0,0.00043835,15]
[371860804,1752451850191,-460.0,0.00043835,15]
[371860805,1752451850200,-461.96,0.00043835,15]
[371860806,1752451850209,-744.65,0.00043835,15]
[371860807,1752451850219,-460.0,0.00043835,15]
[371860808,1752451850229,-460.0,0.00043835,7]
[371860809,1752451850239,-1741.1,0.00043835,15]
[371860810,1752451850248,-1343.41,0.00043835,15]
[371860811,1752451850258,-460.0,0.00043835,15]
[371860812,1752451850268,-460.0,0.00043835,15]
[371860813,1752451850277,-3586.76,0.00043835,15]
[371860814,1752451850294,-1000.0,0.00043835,30]
[371860815,1752451850303,-460.0,0.00043835,15]
[371860816,1752451850312,-460.0,0.00043835,15]
[371860817,1752451850322,-460.0,0.00043835,15]
[371860818,1752451850331,-1338.07,0.00043835,15]
[371860819,1752451850340,-460.0,0.00043835,15]
[371860820,1752451850350,-460.0,0.00043835,15]
[371860821,1752451850360,-460.0,0.00043835,15]
[371860822,1752451850369,-460.0,0.00043835,15]
[371860823,1752451850378,-460.0,0.00043835,15]
[371860824,1752451850388,-1161.72,0.00043835,15]
[371860825,1752451850397,-686.7,0.00043835,15]
[371860826,1752451850407,-460.0,0.00043835,15]
[371860827,1752451850416,-460.0,0.00043835,15]
[371860828,1752451850425,-460.0,0.00043835,15]
[371860829,1752451850435,-504.87054653,0.00043835,120]
[371860830,1752451850444,-460.0,0.00043835,15]
[371860831,1752451850453,-3444.61,0.00043835,15]
[371860832,1752451850463,-945.2,0.00043835,15]
[371860833,1752451850472,-2190.52,0.00043835,15]
[371860834,1752451850482,-1601.15,0.00043835,15]
[371860835,1752451850491,-460.0,0.00043835,15]
[371860836,1752451850501,-151.0,0.00043835,14]
[371860837,1752451850511,-264.18911646,0.00043835,30]
[371860838,1752451850520,-941.32,0.00043835,15]
[371860839,1752451850530,-460.0,0.00043835,15]
[371860840,1752451850539,-460.0,0.00043835,15]
[371860841,1752451850549,-151.0,0.00043835,14]
[371860842,1752451850558,-460.0,0.00043835,15]
[371860843,1752451850568,-460.0,0.00043835,15]
[371860844,1752451850578,-460.0,0.00043835,15]
[371860845,1752451850587,-1542.01,0.00043835,15]
[371860846,1752451850597,-608.0,0.00043835,15]
[371860847,1752451850607,-460.0,0.00043835,15]
[371860848,1752451850617,-460.0,0.00043835,15]
[371860849,1752451850626,-495.67581773,0.00043835,15]
[371860850,1752451850635,-803.64,0.00043835,15]
[371860851,1752451850645,-460.0,0.00043835,15]
[371860852,1752451850654,-460.0,0.00043835,15]
[371860853,1752451850663,-460.0,0.00043835,15]
[371860854,1752451850672,-151.0,0.00043835,14]
[371860855,1752451850682,-6227.32,0.00043835,15]
[371860856,1752451850694,-797.83,0.00043835,15]
[371860857,1752451850703,-307.26486824,0.00043835,15]
[371860858,1752451850722,-151.0,0.00043835,14]
[371860859,1752451850731,-1561.8,0.00043835,15]
[371860860,1752451850741,-682.07,0.00043835,15]
[371860861,1752451850750,-715.25,0.00043835,15]
[371860862,1752451850762,-460.0,0.00043835,15]
[371860863,1752451850772,-460.0,0.00043835,15]
[371860864,1752451850782,-460.0,0.00043835,15]
[371860865,1752451850791,-460.0,0.00043835,15]
[371860866,1752451850801,-151.0,0.00043835,14]
[371860867,1752451850810,-1400.1,0.00043835,15]
[371860868,1752451850819,-460.0,0.00043835,15]
[371860869,1752451850828,-460.0,0.00043835,15]
[371860870,1752451850837,-460.0,0.00043835,15]
[371860871,1752451850846,-460.0,0.00043835,15]
[371860872,1752451850855,-151.0,0.00043835,14]
[371860873,1752451850864,-151.0,0.00043835,14]
[371860874,1752451850874,-6472.23,0.00043835,15]
[371860875,1752451850884,-151.0,0.00043835,14]
[371860876,1752451850893,-972.58,0.00043835,15]
[371860877,1752451850902,-547.3840962,0.00043835,15]
[371860878,1752451850912,-972.58,0.00043835,15]
[371860879,1752451850921,-972.58,0.00043835,15]
[371860880,1752451850931,-460.0,0.00043835,15]
[371860881,1752451850940,-460.0,0.00043835,15]
[371860882,1752451850950,-545.86,0.00043835,15]
[371860883,1752451850959,-535.08,0.00043835,15]
[371860884,1752451850969,-18440.1,0.00043835,15]
[371860885,1752451850979,-460.0,0.00043835,15]
[371860886,1752451850988,-972.58,0.00043835,15]
[371860887,1752451850997,-972.58,0.00043835,15]
[371860888,1752451851007,-972.58,0.00043835,15]
[371860889,1752451851016,-1272.79,0.00043835,15]
[371860890,1752451851026,-972.58,0.00043835,15]
[371860891,1752451851035,-460.0,0.00043835,15]
[371860892,1752451851044,-972.58,0.00043835,15]
[371860893,1752451851053,-675.8,0.00043835,15]
[371860894,1752451851063,-485.31,0.00043835,15]
[371860895,1752451851072,-460.0,0.00043835,15]
[371860896,1752451851081,-3084.71,0.00043835,120]
[371860897,1752451851091,-600.12,0.00043835,15]
[371860898,1752451851100,-460.0,0.00043835,15]
[371860899,1752451851111,-151.0,0.00043835,14]
[371860900,1752451851120,-151.0,0.00043835,14]
[371860901,1752451851129,-151.0,0.00043835,14]
[371860902,1752451851139,-734.436551,0.00043835,14]
[371860903,1752451851149,-460.0,0.00043835,15]
[371860904,1752451851159,-568.98,0.00043835,15]
[371860905,1752451851168,-460.0,0.00043835,15]
[371860906,1752451851178,-1180.5,0.00043835,15]
[371860907,1752451851187,-460.0,0.00043835,15]
[371860908,1752451851197,-509.85,0.00043835,15]
[371860909,1752451851206,-460.0,0.00043835,15]
[371860910,1752451851215,-576.16,0.00043835,15]
[371860911,1752451851225,-460.0,0.00043835,15]
[371860912,1752451851235,-955.38,0.00043835,15]
[371860913,1752451851244,-151.0,0.00043835,14]
[371860914,1752451851253,-460.0,0.00043835,15]
[371860915,1752451851263,-1221.91,0.00043835,15]
[371860916,1752451851273,-460.0,0.00043835,15]
[371860917,1752451851282,-460.0,0.00043835,15]
[371860918,1752451851292,-460.0,0.00043835,15]
[371860919,1752451851302,-151.0,0.00043835,14]
[371860920,1752451851311,-734.436551,0.00043835,14]
[371860921,1752451851321,-460.0,0.00043835,15]
[371860922,1752451851331,-151.0,0.00043835,14]
[371860923,1752451851340,-736.62,0.00043835,15]
[371860924,1752451851351,-460.0,0.00043835,15]
[371860925,1752451851361,-642.64,0.00043835,15]
[371860926,1752451851370,-460.0,0.00043835,15]
[371860927,1752451851380,-443.4003916,0.00043835,15]
[371860928,1752451851391,-669.94,0.00043835,15]
[371860929,1752451851401,-460.0,0.00043835,15]
[371860930,1752451851411,-460.0,0.00043835,15]
[371860931,1752451851421,-460.0,0.00043835,15]
[371860932,1752451851431,-493.93267752,0.00043835,15]
[371860933,1752451851440,-734.436551,0.00043835,14]
[371860934,1752451851450,-656.34,0.00043835,15]
[371860935,1752451851459,-734.436551,0.00043835,14]
[371860936,1752451851469,-460.0,0.00043835,15]
[371860937,1752451851478,-460.0,0.00043835,15]
[371860938,1752451851488,-460.0,0.00043835,15]
[371860939,1752451851498,-595.13,0.00043835,15]
[371860940,1752451851507,-460.0,0.00043835,15]
[371860941,1752451851516,-507.29,0.00043835,15]
[371860942,1752451851526,-588.56,0.00043835,15]
[371860943,1752451851536,-728.59,0.00043835,15]
[371860944,1752451851545,-460.0,0.00043835,15]
[371860945,1752451851555,-1563.09,0.00043835,15]
[371860946,1752451851565,-1650.05,0.00043835,15]
[371860947,1752451851574,-561.1942,0.00043835,14]
[371860948,1752451851584,-460.0,0.00043835,15]
[371860949,1752451851594,-561.1942,0.00043835,14]
[371860950,1752451851603,-918.08,0.00043835,15]
[371860951,1752451851614,-460.0,0.00043835,15]
[371860952,1752451851624,-5638.5,0.00043835,15]
[371860953,1752451851633,-460.0,0.00043835,15]
[371860954,1752451851643,-798.42,0.00043835,15]
[371860955,1752451851653,-460.0,0.00043835,15]
[371860956,1752451851662,-561.1942,0.00043835,14]
[371860957,1752451851672,-561.1942,0.00043835,14]
[371860958,1752451851683,-460.0,0.00043835,15]
[371860959,1752451851694,-460.0,0.00043835,15]
[371860960,1752451851704,-460.0,0.00043835,15]
[371860961,1752451851713,-460.0,0.00043835,15]
[371860962,1752451851723,-586.99,0.00043835,15]
[371860963,1752451851733,-593.44,0.00043835,15]
[371860964,1752451851743,-460.0,0.00043835,15]
[371860965,1752451851753,-460.0,0.00043835,15]
[371860966,1752451851764,-1930.1,0.00043835,15]
[371860967,1752451851774,-460.0,0.00043835,15]
[371860968,1752451851784,-1324.11,0.00043835,15]
[371860969,1752451851795,-500.0,0.00043835,15]
[371860970,1752451851805,-2023.39,0.00043835,15]
[371860971,1752451851815,-500.0,0.00043835,15]
[371860972,1752451851824,-1409.0,0.00043835,15]
[371860973,1752451851834,-500.0,0.00043835,15]
[371860974,1752451851843,-500.0,0.00043835,15]
[371860975,1752451851853,-460.0,0.00043835,15]
[371860976,1752451851863,-460.0,0.00043835,15]
[371860977,1752451851872,-587.86,0.00043835,15]
[371860978,1752451851881,-500.0,0.00043835,15]
[371860979,1752451851891,-500.37,0.00043835,15]
[371860980,1752451851900,-925.57,0.00043835,15]
[371860981,1752451851910,-460.0,0.00043835,15]
[371860982,1752451851919,-537.84,0.00043835,15]
[371860983,1752451851930,-700.0,0.00043835,120]
[371860984,1752451851940,-700.0,0.00043835,120]
[371860985,1752451851950,-282.78,0.00043835,120]
[371860986,1752451852087,-722.42,0.00043835,15]
[371860987,1752451852098,-506.02,0.00043835,15]
[371860988,1752451852110,-460.0,0.00043835,15]
[371860989,1752451852120,-460.0,0.00043835,15]
[371860990,1752451852129,-460.0,0.00043835,15]
[371860991,1752451852139,-460.0,0.00043835,15]
[371860992,1752451852150,-688.85,0.00043835,15]
[371860993,1752451852159,-460.0,0.00043835,15]
[371860994,1752451852169,-552.35,0.00043835,15]
[371860995,1752451852179,-460.0,0.00043835,15]
[371860996,1752451852188,-460.0,0.00043835,15]
[371860997,1752451852198,-460.0,0.00043835,15]
[371860998,1752451852209,-460.0,0.00043835,15]
[371860999,1752451852219,-460.0,0.00043835,15]
[371861000,1752451852228,-1526.8,0.00043835,15]
[371861001,1752451852238,-460.0,0.00043835,15]
[371861002,1752451852247,-460.0,0.00043835,15]
[371861003,1752451852258,-570.16,0.00043835,15]
[371861004,1752451852267,-460.0,0.00043835,15]
[371861005,1752451852278,-460.0,0.00043835,15]
[371861006,1752451852287,-460.0,0.00043835,15]
[371861007,1752451852297,-3359.74,0.00043835,15]
[371861008,1752451852307,-460.0,0.00043835,15]
[371861009,1752451852318,-460.0,0.00043835,15]
[371861010,1752451852330,-758.68,0.00043835,15]
[371861011,1752451852340,-460.0,0.00043835,15]
[371861012,1752451852350,-1738.63,0.00043835,15]
[371861013,1752451852360,-151.0,0.00043835,14]
[371861014,1752451852370,-460.0,0.00043835,15]
[371861015,1752451852379,-151.0,0.00043835,14]
[371861016,1752451852388,-727.48,0.00043835,15]
[371861017,1752451852397,-460.0,0.00043835,15]
[371861018,1752451852407,-1087.64,0.00043835,15]
[371861019,1752451852417,-1834.29,0.00043835,15]
[371861020,1752451852426,-2173.845881,0.00043835,14]
[371861021,1752451852436,-460.0,0.00043835,15]
[371861022,1752451852445,-460.0,0.00043835,15]
[371861023,1752451852455,-471.96,0.00043835,15]
[371861024,1752451852465,-881.21,0.00043835,15]
[371861025,1752451852475,-666.42,0.00043835,15]
[371861026,1752451852485,-460.0,0.00043835,15]
[371861027,1752451852495,-4971.33,0.00043835,15]
[371861028,1752451852505,-1482.54,0.00043835,15]
[371861029,1752451852515,-460.0,0.00043835,15]
[371861030,1752451852525,-460.0,0.00043835,15]
[371861031,1752451852535,-2173.845881,0.00043835,14]
[371861032,1752451852545,-460.0,0.00043835,15]
[371861033,1752451852555,-779.35,0.00043835,15]
[371861034,1752451852566,-460.0,0.00043835,15]
[371861035,1752451852575,-460.0,0.00043835,15]
[371861036,1752451852585,-460.0,0.00043835,15]
[371861037,1752451852595,-460.0,0.00043835,15]
[371861038,1752451852606,-576.46,0.00043835,15]
[371861039,1752451852615,-1403.14,0.00043835,15]
[371861040,1752451852625,-460.0,0.00043835,15]
[371861041,1752451852634,-509.01,0.00043835,15]
[371861042,1752451852644,-466.45938837,0.00043835,15]
[371861043,1752451852654,-1313.18,0.00043835,15]
[371861044,1752451852664,-460.0,0.00043835,15]
[371861045,1752451852673,-841.03,0.00043835,15]
[371861046,1752451852687,-460.0,0.00043835,15]
[371861047,1752451852699,-460.0,0.00043835,15]
[371861048,1752451852709,-460.0,0.00043835,15]
[371861049,1752451852719,-460.0,0.00043835,15]
[371861050,1752451852730,-2067.61,0.00043835,15]
[371861051,1752451852740,-460.0,0.00043835,15]
[371861052,1752451852750,-494.28402187,0.00043835,15]
[371861053,1752451852763,-460.0,0.00043835,15]
[371861054,1752451852773,-1041.48,0.00043835,15]
[371861055,1752451852783,-460.0,0.00043835,15]
[371861056,1752451852792,-460.0,0.00043835,15]
[371861057,1752451852802,-460.0,0.00043835,15]
[371861058,1752451852811,-1614.96,0.00043835,15]
[371861059,1752451852821,-816.84,0.00043835,15]
[371861060,1752451852831,-774.68,0.00043835,15]
[371861061,1752451852841,-6888.71,0.00043835,15]
[371861062,1752451852851,-774.68,0.00043835,15]
[371861063,1752451852862,-774.68,0.00043835,15]
[371861064,1752451852872,-774.68,0.00043835,15]
[371861065,1752451852881,-480.63,0.00043835,15]
[371861066,1752451852892,-774.68,0.00043835,15]
[371861067,1752451852901,-723.22,0.00043835,15]
[371861068,1752451852911,-933.17,0.00043835,15]
[371861069,1752451852920,-460.0,0.00043835,15]
[371861070,1752451852931,-4006.67,0.00043835,15]
[371861071,1752451852943,-997.56,0.00043835,15]
[371861072,1752451852954,-774.68,0.00043835,15]
[371861073,1752451852964,-460.0,0.00043835,15]
[371861074,1752451852973,-1000.0,0.00043835,15]
[371861075,1752451852983,-774.68,0.00043835,15]
[371861076,1752451852993,-774.68,0.00043835,15]
[371861077,1752451853003,-460.0,0.00043835,15]
[371861078,1752451853012,-774.68,0.00043835,15]
[371861079,1752451853021,-774.68,0.00043835,15]
[371861080,1752451853033,-162.538154,0.00043835,14]
[371861081,1752451853043,-774.68,0.00043835,15]
[371861082,1752451853053,-774.68,0.00043835,15]
[371861083,1752451853063,-162.538154,0.00043835,14]
[371861084,1752451853073,-774.68,0.00043835,15]
[371861085,1752451853083,-460.0,0.00043835,15]
[371861086,1752451853092,-460.0,0.00043835,15]
[371861087,1752451853102,-460.0,0.00043835,15]
[371861088,1752451853114,-460.0,0.00043835,15]
[371861089,1752451853124,-798.01,0.00043835,15]
[371861090,1752451853134,-827.08,0.00043835,15]
[371861091,1752451853144,-162.538154,0.00043835,14]
[371861092,1752451853154,-511.2,0.00043835,15]
[371861093,1752451853164,-460.0,0.00043835,15]
[371861094,1752451853174,-460.0,0.00043835,15]
[371861095,1752451853184,-162.538154,0.00043835,14]
[371861096,1752451853195,-594.15,0.00043835,15]
[371861097,1752451853204,-906.12,0.00043835,15]
[371861098,1752451853214,-7343.9,0.00043835,15]
[371861099,1752451853224,-529.41,0.00043835,15]
[371861100,1752451853234,-460.0,0.00043835,15]
[371861101,1752451853243,-460.0,0.00043835,15]
[371861102,1752451853253,-460.0,0.00043835,15]
[371861103,1752451853263,-1512.6,0.00043835,15]
[371861104,1752451853273,-536.75,0.00043835,15]
[371861105,1752451853283,-460.0,0.00043835,15]
[371861106,1752451853294,-460.0,0.00043835,15]
[371861107,1752451853303,-460.0,0.00043835,15]
[371861108,1752451853314,-569.21,0.00043835,15]
[371861109,1752451853323,-460.0,0.00043835,15]
[371861110,1752451853334,-460.0,0.00043835,15]
[371861111,1752451853344,-460.0,0.00043835,15]
[371861112,1752451853353,-460.0,0.00043835,15]
[371861113,1752451853365,-460.0,0.00043835,15]
[371861114,1752451853375,-445.38936362,0.00043835,15]
[371861115,1752451853384,-936.3,0.00043835,15]
[371861116,1752451853394,-2770.61,0.00043835,120]
[371861117,1752451853404,-460.0,0.00043835,15]
[371861118,1752451853414,-460.0,0.00043835,15]
[371861119,1752451853424,-460.0,0.00043835,15]
[371861120,1752451853433,-2265.64,0.00043835,15]
[371861121,1752451853443,-1997.12,0.00043835,15]
[371861122,1752451853454,-460.0,0.00043835,15]
[371861123,1752451853464,-460.0,0.00043835,15]
[371861124,1752451853474,-460.0,0.00043835,15]
[371861125,1752451853484,-460.0,0.00043835,15]
[371861126,1752451853495,-460.0,0.00043835,15]
[371861127,1752451853504,-460.0,0.00043835,15]
[371861128,1752451853514,-602.46,0.00043835,15]
[371861129,1752451853524,-460.0,0.00043835,15]
[371861130,1752451853534,-1169.79,0.00043835,15]
[371861131,1752451853544,-726.02,0.00043835,15]
[371861132,1752451853553,-460.0,0.00043835,15]
[371861133,1752451853563,-460.0,0.00043835,15]
[371861134,1752451853573,-460.0,0.00043835,15]
[371861135,1752451853584,-460.0,0.00043835,15]
[371861136,1752451853594,-460.0,0.00043835,15]
[371861137,1752451853604,-460.0,0.00043835,15]
[371861138,1752451853616,-11502.33,0.00043835,15]
[371861139,1752451853626,-460.0,0.00043835,15]
[371861140,1752451853636,-709.36,0.00043835,15]
[371861141,1752451853646,-460.0,0.00043835,15]
[371861142,1752451853655,-460.0,0.00043835,15]
[371861143,1752451853665,-460.0,0.00043835,15]
[371861144,1752451853678,-507.2,0.00043835,15]
[371861145,1752451853692,-3257.68,0.00043835,15]
[371861146,1752451853701,-151.0,0.00043835,14]
[371861147,1752451853711,-460.0,0.00043835,15]
[371861148,1752451853721,-753.89,0.00043835,15]
[371861149,1752451853731,-460.0,0.00043835,15]
[371861150,1752451853740,-460.0,0.00043835,15]
[371861151,1752451853750,-647.69,0.00043835,15]
[371861152,1752451853760,-1337.95,0.00043835,15]
[371861153,1752451853770,-460.0,0.00043835,15]
[371861154,1752451853779,-2940.02,0.00043835,15]
[371861155,1752451853789,-2044.85,0.00043835,15]
[371861156,1752451853799,-2940.02,0.00043835,15]
[371861157,1752451853809,-2940.02,0.00043835,15]
[371861158,1752451853819,-1266.28,0.00043835,15]
[371861159,1752451853830,-460.0,0.00043835,15]
[371861160,1752451853839,-495.13417522,0.00043835,15]
[371861161,1752451853850,-460.0,0.00043835,15]
[371861162,1752451853860,-706.09,0.00043835,15]
[371861163,1752451853869,-2940.02,0.00043835,15]
[371861164,1752451853879,-5636.79,0.00043835,15]
[371861165,1752451853889,-2940.02,0.00043835,15]
[371861166,1752451853898,-2940.02,0.00043835,15]
[371861167,1752451853907,-2940.02,0.00043835,15]
[371861168,1752451853917,-500.0,0.00043835,15]
[371861169,1752451853926,-552.22,0.00043835,15]
[371861170,1752451853936,-460.0,0.00043835,15]
[371861171,1752451853946,-2940.02,0.00043835,15]
[371861172,1752451853955,-500.0,0.00043835,15]
[371861173,1752451853965,-2940.02,0.00043835,15]
[371861174,1752451853975,-500.0,0.00043835,15]
[371861175,1752451853985,-460.0,0.00043835,15]
[371861176,1752451853995,-2940.02,0.00043835,15]
[371861177,1752451854004,-500.0,0.00043835,15]
[371861178,1752451854014,-2940.02,0.00043835,15]
[371861179,1752451854024,-500.0,0.00043835,15]
[371861180,1752451854034,-2940.02,0.00043835,15]
[371861181,1752451854044,-2940.02,0.00043835,15]
[371861182,1752451854054,-151.0,0.00043835,14]
[371861183,1752451854063,-460.0,0.00043835,15]
[371861184,1752451854073,-460.0,0.00043835,15]
[371861185,1752451854084,-787.28,0.00043835,15]
[371861186,1752451854095,-3160.15,0.00043835,15]
[371861187,1752451854106,-460.0,0.00043835,15]
[371861188,1752451854116,-763.81,0.00043835,15]
[371861189,1752451854125,-494.19588078,0.00043835,15]
[371861190,1752451854136,-897.98,0.00043835,15]
[371861191,1752451854145,-676.39,0.00043835,15]
[371861192,1752451854155,-1111.09,0.00043835,15]
[371861193,1752451854165,-460.0,0.00043835,15]
[371861194,1752451854174,-460.0,0.00043835,15]
[371861195,1752451854184,-460.5,0.00043835,15]
[371861196,1752451854194,-969.68,0.00043835,15]
[371861197,1752451854204,-460.0,0.00043835,15]
[371861198,1752451854214,-930.37,0.00043835,15]
[371861199,1752451854224,-963.09,0.00043835,15]
[371861200,1752451854234,-513.28,0.00043835,15]
[371861201,1752451854573,-11045.22,0.00043835,15]
[371861202,1752451854595,-460.0,0.00043835,15]
[371861203,1752451854606,-467.26,0.00043835,15]
[371861204,1752451854616,-1822.87,0.00043835,15]
[371861205,1752451854626,-460.0,0.00043835,15]
[371861206,1752451854635,-2023.51,0.00043835,15]
[371861207,1752451854645,-4046.66,0.00043835,15]
[371861208,1752451854654,-730.37,0.00043835,15]
[371861209,1752451854664,-502.54,0.00043835,15]
[371861210,1752451854673,-460.0,0.00043835,15]
[371861211,1752451854685,-681.86,0.00043835,15]
[371861212,1752451854696,-460.0,0.00043835,15]
[371861213,1752451854705,-460.0,0.00043835,15]
[371861214,1752451854715,-460.0,0.00043835,15]
[371861215,1752451854724,-590.4,0.00043835,15]
[371861216,1752451854735,-460.0,0.00043835,15]
[371861217,1752451854744,-814.04,0.00043835,15]
[371861218,1752451854754,-460.0,0.00043835,15]
[371861219,1752451854766,-691.33,0.00043835,15]
[371861220,1752451854776,-1478.15,0.00043835,15]
[371861221,1752451854786,-460.0,0.00043835,15]
[371861222,1752451854796,-460.0,0.00043835,15]
[371861223,1752451854806,-460.0,0.00043835,15]
[371861224,1752451854816,-2249.68,0.00043835,15]
[371861225,1752451854827,-460.0,0.00043835,15]